bitfinex-derivatives/quotes_SOLF0:USTF0_20241222
["timestamp","ask_amount","ask_price","bid_price","bid_amount"]
[1734892901749,4.5515,183.11,183.0,2.7343]
[1734892902044,4.5515,183.11,182.95,1.7138]
[1734892902249,38.11568051,183.11,182.95,35.27798051]
[1734892902552,2.7334,183.07,183.02,2.734]
[1734892902954,2.7335,183.06,183.02,2.734]
[1734892903349,5.6735,183.06,183.02,2.734]
[1734892903553,2.7336,183.05,183.0,2.7342]
[1734892905250,2.7337,183.04,183.0,2.7342]
[1734892905458,2.94,183.06,182.98,2.7345]
[1734892905843,2.94,183.06,182.95,1.7138]
[1734892905844,2.734,183.02,182.95,1.7138]
[1734892906044,33.56418051,183.05,182.95,1.7138]
[1734892906555,2.7343,183.01,182.95,1.7138]
[1734892906854,2.7341,183.02,182.97,2.7346]
[1734892907148,2.7341,183.02,182.95,1.7138]
[1734892907149,33.56418051,183.05,182.95,1.7138]
[1734892907349,2.7343,183.01,182.97,2.7348]
[1734892907555,2.94,183.04,182.95,1.7138]
[1734892908157,2.94,183.04,182.96,2.7349]
[1734892908351,33.56418051,183.02,182.92,3.3667]
[1734892908552,33.56418051,183.02,182.92,1.6532]
[1734892909252,33.56418051,183.02,182.92,4.3886]
[1734892910458,2.94,183.03,182.92,1.6532]
[1734892910656,5.674,183.03,182.93,1.7221]
[1734892911058,5.674,183.03,182.97,2.7346]
[1734892911356,2.734,183.02,182.97,2.7346]
[1734892912959,2.94,183.03,182.93,1.7221]
[1734892913254,33.56418051,183.06,182.93,1.7221]
[1734892913453,33.56418051,183.09,182.93,1.7221]
[1734892913658,2.94,183.08,182.93,1.7221]
[1734892913857,2.7336,183.05,183.01,2.7341]
[1734892915258,2.94,183.08,182.97,1.5771]
[1734892915469,2.7337,183.04,183.0,2.7343]
[1734892915854,2.94,183.07,183.0,2.7343]
[1734892916050,2.7336,183.05,183.01,2.7341]
[1734892916557,2.94,183.07,182.99,2.7343]
[1734892916851,2.7337,183.04,182.99,2.7343]
[1734892917058,33.56418051,183.06,182.97,1.5771]
[1734892917957,2.7341,183.02,182.97,1.5771]
[1734892918658,2.7341,183.02,182.98,2.7346]
[1734892918958,2.7342,183.01,182.93,1.7221]
[1734892919352,2.7342,183.01,182.96,2.7348]
[1734892919553,2.7342,183.01,182.93,1.7221]
[1734892921860,2.94,183.02,182.93,1.7221]
[1734892922061,2.94,183.05,182.94,33.56418051]
[1734892922263,2.94,183.07,182.94,20.65471884]
[1734892922452,2.94,183.08,183.03,2.7339]
[1734892923158,5.6732,183.08,183.04,2.7337]
[1734892924061,2.7333,183.07,182.97,23.59471884]
[1734892924256,2.94,183.08,182.97,2.94]
[1734892924560,23.59471884,183.08,182.93,4.6621]
[1734892925261,2.734,183.02,182.98,2.7345]
[1734892927062,12.39003489,183.12,182.98,2.94]
[1734892927257,22.86166649,183.14,183.0,20.65471884]
[1734892927462,2.7324,183.13,183.09,2.7328]
[1734892928057,2.7324,183.13,183.1,2.7328]
[1734892928961,2.94,183.17,183.03,23.59471884]
[1734892929166,61.02873659,183.18,183.06,20.65471884]
[1734892929460,61.02873659,183.18,183.07,1.7436]
[1734892929964,2.7318,183.17,183.07,1.7436]
[1734892930555,2.7318,183.17,183.12,2.7324]
[1734892931063,2.7321,183.15,183.07,1.7436]
[1734892931262,2.7321,183.15,183.1,2.7327]
[1734892931461,2.7321,183.15,183.07,1.7436]
[1734892931860,2.732,183.16,183.11,2.7326]
[1734892932161,2.94,183.18,183.07,1.7436]
[1734892932360,2.94,183.18,183.12,2.7324]
[1734892932562,2.7319,183.17,183.07,1.7436]
[1734892932761,2.94,183.18,183.08,2.94]
[1734892932972,2.94,183.18,183.15,2.7321]
[1734892933571,2.94,183.18,183.09,36.79624841]
[1734892933766,2.94,183.18,183.09,3.2742]
[1734892934363,2.7322,183.15,183.11,2.7326]
[1734892938369,5.6717,183.18,183.14,2.7321]
[1734892938570,2.94,183.18,183.09,3.2742]
[1734892939171,2.7318,183.17,183.09,3.2742]
[1734892939372,2.94,183.18,183.09,3.2742]
[1734892940078,2.94,183.19,183.09,3.2742]
[1734892940677,1.6005,183.23,183.09,36.79624841]
[1734892940976,2.94,183.22,183.09,36.79624841]
[1734892941577,2.7314,183.2,183.09,36.79624841]
[1734892942279,2.7315,183.19,183.15,2.732]
[1734892942669,2.94,183.22,183.09,3.2742]
[1734892942867,36.46204841,183.22,183.09,3.2742]
[1734892943068,33.52204841,183.19,183.03,33.52204841]
[1734892943278,1.7369,183.18,183.03,1.708]
[1734892943576,2.7327,183.11,183.07,2.7332]
[1734892943778,1.7369,183.18,183.03,1.708]
[1734892943779,2.94,183.12,183.03,1.708]
[1734892945581,2.733,183.09,183.03,1.708]
[1734892945976,2.733,183.09,183.06,2.7334]
[1734892946984,2.733,183.09,183.05,2.7335]
[1734892948280,33.52204841,183.16,183.03,1.708]
[1734892948585,2.94,183.16,183.04,33.52204841]
[1734892948882,2.7325,183.13,183.09,2.7329]
[1734892949480,2.7326,183.12,183.08,2.733]
[1734892951283,2.7327,183.11,183.04,33.52204841]
[1734892951588,2.94,183.16,183.04,33.52204841]
[1734892952185,2.94,183.16,183.03,1.708]
[1734892952380,2.7325,183.12,183.08,2.733]
[1734892953687,2.7327,183.11,183.08,2.733]
[1734892955481,31.30174273,183.23,183.08,23.57899875]
[1734892955676,0.90264047,183.22,183.09,3.406]
[1734892955886,0.90264047,183.22,183.11,20.63899875]
[1734892956091,0.90264047,183.22,183.12,1.6197]
[1734892956386,10.4716316,183.26,183.13,2.94]
[1734892956585,0.90235955,183.25,183.13,2.94]
[1734892956988,14.57022916,183.26,183.13,2.94]
[1734892957187,0.90236429,183.25,183.13,2.94]
[1734892957486,4.09859756,183.26,183.14,20.63899875]
[1734892957782,32.64124273,183.3,183.17,20.63899875]
[1734892957989,5.00020253,183.29,183.18,6.2697]
[1734892958287,5.00020253,183.29,183.23,2.7308]
[1734892958288,2.7303,183.27,183.23,2.7308]
[1734892958889,2.7303,183.27,183.18,6.2697]
[1734892959082,32.64124273,183.3,183.22,2.731]
[1734892959083,2.7305,183.26,183.22,2.731]
[1734892960081,2.7308,183.24,183.19,2.7313]
[1734892960282,2.94,183.3,183.19,2.7313]
[1734892960480,0.90217516,183.29,183.18,2.94]
[1734892960680,2.7304,183.27,183.22,2.731]
[1734892961189,2.94,183.3,183.25,2.7304]
[1734892961190,5.6699,183.3,183.25,2.7304]
[1734892961389,2.94,183.3,183.25,2.7304]
[1734892961589,5.75283961,183.34,183.25,2.7304]
[1734892961788,3.84195871,183.32,183.25,2.7304]
[1734892961992,2.94,183.32,183.25,2.7304]
[1734892962296,100.83235399,183.36,183.28,2.7301]
[1734892962588,60.96374411,183.36,183.25,2.94]
[1734892962788,0.9018378,183.35,183.25,2.94]
[1734892963183,60.96374411,183.36,183.25,2.94]
[1734892963382,2.7293,183.34,183.29,2.7299]
[1734892963783,60.96374411,183.36,183.25,2.94]
[1734892963979,2.94,183.35,183.25,2.94]
[1734892964487,2.7291,183.35,183.3,2.7298]
[1734892964686,58.02374411,183.36,183.25,2.94]
[1734892965493,7.5316316,183.41,183.26,20.63899875]
[1734892965694,0.90173258,183.4,183.26,20.63899875]
[1734892965896,2.7287,183.38,183.3,2.7298]
[1734892966188,22.37309875,183.42,183.3,2.94]
[1734892966394,3.84157615,183.41,183.3,2.94]
[1734892966691,2.94,183.41,183.3,2.94]
[1734892967093,4.6741,183.42,183.3,2.94]
[1734892967301,0.90157698,183.41,183.3,2.94]
[1734892967487,2.94,183.42,183.35,2.7291]
[1734892967694,0.90157698,183.41,183.35,2.7291]
[1734892967895,2.7281,183.42,183.37,2.7288]
[1734892968297,7.03457274,183.47,183.35,2.94]
[1734892968496,2.7277,183.45,183.39,2.7284]
[1734892968801,0.90131309,183.46,183.39,2.7284]
[1734892968802,2.94,183.47,183.39,2.7284]
[1734892969293,2.94,183.47,183.36,3.3123]
[1734892969491,2.7276,183.46,183.41,2.7281]
[1734892969697,2.94,183.47,183.41,2.7281]
[1734892970301,2.94,183.49,183.41,2.7281]
[1734892970499,2.7277,183.45,183.41,2.7281]
[1734892971695,2.7277,183.45,183.36,3.3123]
[1734892972093,2.7279,183.43,183.36,3.3123]
[1734892972294,2.94,183.49,183.36,3.3123]
[1734892972503,0.90118268,183.48,183.36,3.3123]
[1734892972700,21.54018143,183.48,183.34,2.7292]
[1734892972899,0.90118268,183.47,183.33,4.5904]
[1734892973197,2.7278,183.44,183.34,2.7291]
[1734892973404,2.94,183.43,183.33,4.5904]
[1734892974705,2.94,183.43,183.36,2.729]
[1734892974906,2.94,183.43,183.33,4.5904]
[1734892975306,2.7284,183.4,183.35,2.7291]
[1734892975605,2.94,183.43,183.33,4.5904]
[1734892976306,2.7284,183.4,183.35,2.7291]
[1734892976507,2.94,183.43,183.33,4.5904]
[1734892976898,2.7286,183.39,183.33,4.5904]
[1734892977105,2.7286,183.39,183.34,2.7291]
[1734892980412,2.94,183.43,183.33,1.6504]
[1734892980908,2.7289,183.37,183.33,4.3798]
[1734892982301,2.92,183.41,183.33,1.6504]
[1734892982805,2.7289,183.37,183.33,4.3797]
[1734892983408,2.92,183.41,183.33,1.6504]
[1734892983709,2.92,183.46,183.34,2.92]
[1734892983908,2.7277,183.45,183.41,2.7282]
[1734892984208,2.92,183.48,183.35,1.6961]
[1734892984600,2.92,183.48,183.34,1.7116]
[1734892984803,33.43671283,183.45,183.34,1.7116]
[1734892985113,2.7288,183.37,183.34,4.4408]
[1734892985311,2.7288,183.37,183.33,1.6504]
[1734892986300,2.7288,183.37,183.33,4.3798]
[1734892986503,2.92,183.41,183.33,1.6504]
[1734892987010,2.7291,183.36,183.33,1.6504]
[1734892987209,2.92,183.41,183.33,1.6504]
[1734892988010,2.7288,183.38,183.34,2.7291]
[1734892988214,2.92,183.41,183.33,1.6504]
[1734892988404,2.7282,183.41,183.37,2.7287]
[1734892989410,2.7284,183.4,183.37,2.7287]
[1734892989607,2.7284,183.4,183.36,2.729]
[1734892991009,2.7284,183.4,183.37,2.7288]
[1734892991408,2.92,183.43,183.33,1.6504]
[1734892991608,2.7286,183.39,183.35,2.7291]
[1734892992115,2.92,183.43,183.35,2.7291]
[1734892992315,2.92,183.43,183.33,1.6504]
[1734892993210,2.7289,183.37,183.33,4.3797]
[1734892993614,2.92,183.45,183.33,1.6504]
[1734892993911,2.7286,183.39,183.33,1.6504]
[1734892994111,36.35671283,183.45,183.33,1.6504]
[1734892994516,36.35671283,183.45,183.33,4.3798]
[1734892994903,2.7289,183.37,183.33,4.3798]
[1734892995408,2.7289,183.37,183.34,2.7292]
[1734892996413,2.92,183.4,183.33,1.6504]
[1734892996611,29.70124273,183.49,183.33,1.6504]
[1734892996612,2.92,183.45,183.34,20.57999049]
[1734892996912,7.5316316,183.48,183.37,20.57999049]
[1734892997113,7.5316316,183.48,183.38,2.92]
[1734892997413,7.5316316,183.48,183.46,2.7274]
[1734892997910,5.6468,183.51,183.46,2.7274]
[1734892998208,2.7266,183.53,183.43,2.92]
[1734892998413,2.92,183.54,183.43,2.92]
[1734892999005,4.09259449,183.55,183.43,2.92]
[1734892999204,2.7267,183.52,183.43,2.92]
[1734892999806,2.7267,183.52,183.46,2.7273]
[1734893000614,2.7267,183.52,183.47,2.7272]
[1734893003421,2.7265,183.53,183.43,2.92]
[1734893003629,2.7265,183.53,183.43,23.49999049]
[1734893003929,2.7263,183.54,183.5,2.7267]
[1734893004425,12.33550083,183.59,183.46,20.57999049]
[1734893004625,12.33550083,183.6,183.53,2.7264]
[1734893004928,15.25550083,183.6,183.53,2.7264]
[1734893005122,12.33550083,183.6,183.49,1.6869]
[1734893005427,4.09259449,183.6,183.49,22.26689049]
[1734893005626,32.62124273,183.61,183.5,3.234]
[1734893005827,2.92,183.61,183.5,3.234]
[1734893006024,5.6454,183.61,183.56,2.7259]
[1734893006327,11.8705618,183.63,183.53,2.92]
[1734893006529,14.5955618,183.63,183.57,2.7258]
[1734893006728,14.5955618,183.63,183.53,2.92]
[1734893007024,4.3389302,183.63,183.53,2.92]
[1734893007331,0.24862,183.63,183.53,2.92]
[1734893008329,0.24862,183.63,183.54,2.7262]
[1734893008726,2.7257,183.59,183.54,2.7262]
[1734893009225,2.7257,183.59,183.53,2.92]
[1734893009425,2.7257,183.59,183.53,5.6464]
[1734893011535,2.92,183.6,183.5,5.9608]
[1734893012225,2.7262,183.55,183.5,3.234]
[1734893012424,2.7262,183.55,183.51,2.7267]
[1734893012832,2.726,183.57,183.5,3.234]
[1734893013031,2.726,183.57,183.52,2.7266]
[1734893013733,2.7261,183.56,183.5,3.234]
[1734893013936,2.92,183.6,183.5,3.234]
[1734893014141,23.49999049,183.6,183.49,1.6869]
[1734893014335,20.57999049,183.57,183.45,2.92]
[1734893014533,20.57999049,183.57,183.45,5.6475]
[1734893014733,20.57999049,183.57,183.45,2.92]
[1734893015431,2.727,183.5,183.46,2.7275]
[1734893015628,2.92,183.53,183.45,2.92]
[1734893016441,2.7268,183.51,183.47,2.7273]
[1734893017041,2.7272,183.48,183.45,2.92]
[1734893017231,2.7272,183.48,183.44,112.41859257]
[1734893017637,2.92,183.48,183.36,20.57999049]
[1734893017939,2.92,183.48,183.35,2.92]
[1734893018737,0.2002,183.62,183.39,20.57999049]
[1734893018942,1.5962,183.59,183.42,20.57999049]
[1734893019142,0.9009059,183.58,183.45,20.57999049]
[1734893019441,1.5962,183.59,183.46,2.92]
[1734893019841,2.7261,183.56,183.52,2.7266]
[1734893020041,1.5962,183.59,183.46,2.92]
[1734893020543,1.5962,183.59,183.5,2.7268]
[1734893021837,1.5962,183.59,183.46,2.92]
[1734893022034,1.5962,183.59,183.43,4.9776]
[1734893022035,20.57999049,183.57,183.43,4.9776]
[1734893022235,2.92,183.56,183.43,4.9776]
[1734893022944,2.727,183.5,183.45,2.7276]
[1734893023347,2.92,183.56,183.43,4.9776]
[1734893023545,2.7272,183.49,183.44,2.7277]
[1734893023935,2.92,183.51,183.43,3.3]
[1734893024142,23.49999049,183.51,183.39,2.92]
[1734893024342,23.49999049,183.51,183.38,6.3448]
[1734893024746,2.7275,183.46,183.41,2.7281]
[1734893025047,23.49999049,183.51,183.38,6.3448]
[1734893025243,2.7278,183.44,183.4,2.7284]
[1734893025547,20.57999049,183.51,183.38,6.3448]
[1734893025753,21.24697043,183.58,183.42,20.57999049]
[1734893026047,7.5316316,183.58,183.48,20.57999049]
[1734893026241,7.5316316,183.58,183.43,4.5129]
[1734893026242,7.5316316,183.58,183.55,2.7261]
[1734893026443,32.62124273,183.65,183.5,33.36262953]
[1734893026643,4.99072086,183.64,183.51,1.5929]
[1734893026845,0.90032281,183.63,183.51,1.5929]
[1734893027140,33.36262953,183.6,183.42,33.36262953]
[1734893027448,3.82052655,183.59,183.43,7.846]
[1734893027650,2.7263,183.55,183.43,7.846]
[1734893028046,2.92,183.59,183.43,7.846]
[1734893028252,2.92,183.59,183.48,2.7271]
[1734893028746,2.92,183.59,183.43,7.846]
[1734893028951,2.92,183.59,183.43,4.926]
[1734893028952,33.36262953,183.57,183.43,4.926]
[1734893029155,2.7274,183.47,183.43,1.6494]
[1734893029645,2.92,183.51,183.43,1.6494]
[1734893030046,2.7274,183.47,183.43,1.6494]
[1734893030254,2.92,183.51,183.43,1.6494]
[1734893030645,2.7276,183.46,183.43,1.6494]
[1734893031148,29.70124273,183.59,183.43,1.6494]
[1734893031342,0.90065859,183.58,183.48,33.36262953]
[1734893031544,29.70124273,183.57,183.56,2.7259]
[1734893031744,27.08274273,183.57,183.56,2.7259]
[1734893032257,22.44449113,183.67,183.56,2.7259]
[1734893032553,0.9002662,183.64,183.56,2.7259]
[1734893032752,4.08997433,183.65,183.52,4.632]
[1734893033052,4.36485433,183.67,183.52,4.632]
[1734893033248,2.7247,183.65,183.59,2.7254]
[1734893033445,2.7247,183.65,183.52,4.632]
[1734893033844,2.7247,183.65,183.55,2.726]
[1734893034043,2.92,183.67,183.52,4.632]
[1734893034246,2.92,183.67,183.54,33.36262953]
[1734893034649,33.36262953,183.69,183.54,33.36262953]
[1734893034849,2.92,183.68,183.61,2.7251]
[1734893035646,2.7244,183.67,183.61,2.7251]
[1734893036253,2.7244,183.67,183.62,2.7251]
[1734893036651,2.7242,183.69,183.59,3.4039]
[1734893036855,2.7242,183.69,183.6,1.7213]
[1734893037555,2.7242,183.69,183.63,2.7248]
[1734893038053,60.83398396,183.71,183.63,2.7248]
[1734893038054,2.7242,183.68,183.63,2.7248]
[1734893038645,60.83398396,183.71,183.6,1.7213]
[1734893038847,33.36262953,183.69,183.59,1.6621]
[1734893039047,4.08911234,183.68,183.56,2.92]
[1734893039356,4.08911234,183.68,183.56,2.726]
[1734893039357,2.7254,183.61,183.56,2.726]
[1734893039561,2.92,183.64,183.54,4.9289]
[1734893039750,2.7254,183.6,183.55,2.726]
[1734893042153,2.7256,183.59,183.55,2.726]
[1734893045260,2.92,183.64,183.54,1.7435]
[1734893045559,34.262914,183.63,183.48,3.2821]
[1734893045762,33.36262953,183.6,183.48,3.2821]
[1734893046064,2.7261,183.56,183.51,2.7267]
[1734893046958,2.7262,183.55,183.51,2.7267]
[1734893047152,2.92,183.59,183.51,2.7267]
[1734893047352,2.92,183.59,183.48,3.2821]
[1734893047562,2.7258,183.58,183.48,3.2821]
[1734893047762,2.92,183.59,183.48,3.2821]
[1734893048161,2.7259,183.57,183.48,3.2821]
[1734893048562,2.7259,183.57,183.52,2.7266]
[1734893049465,2.7262,183.55,183.48,3.2821]
[1734893049659,2.92,183.59,183.48,3.2821]
[1734893049860,33.36262953,183.57,183.44,1.591]
[1734893050065,10.46541822,183.59,183.44,1.591]
[1734893050066,33.36262953,183.54,183.44,1.591]
[1734893050364,2.92,183.53,183.39,2.92]
[1734893050563,2.7273,183.48,183.43,2.7278]
[1734893050762,2.92,183.53,183.43,2.7278]
[1734893050965,7.0121821,183.53,183.43,2.7278]
[1734893051165,7.0120643,183.53,183.43,2.7278]
[1734893051463,2.7273,183.48,183.43,2.7278]
[1734893052865,2.92,183.56,183.44,2.92]
[1734893053066,2.92,183.56,183.45,2.92]
[1734893053263,2.7263,183.54,183.48,2.7272]
[1734893053465,2.7263,183.54,183.46,1.6869]
[1734893053960,2.92,183.56,183.46,3.2687]
[1734893054164,2.92,183.56,183.46,1.6869]
[1734893054354,2.92,183.56,183.46,2.7275]
[1734893054756,7.01136338,183.56,183.46,2.7275]
[1734893054955,2.7271,183.49,183.41,2.92]
[1734893055155,15.27065763,183.56,183.44,2.7277]
[1734893055462,0.90075336,183.55,183.44,2.7277]
[1734893055766,2.7272,183.49,183.44,2.7277]
[1734893055965,2.92,183.51,183.44,2.7277]
[1734893056463,2.7274,183.47,183.43,2.7278]
[1734893058467,2.7273,183.48,183.44,2.7277]
[1734893058970,2.92,183.51,183.44,2.7277]
[1734893059865,2.7274,183.47,183.43,2.7279]
[1734893062670,2.7276,183.46,183.43,2.7279]
[1734893064670,2.7276,183.46,183.4,3.3876]
[1734893064671,2.92,183.51,183.4,3.3876]
[1734893064874,2.7277,183.45,183.42,2.7281]
[1734893066771,2.7277,183.45,183.41,2.7282]
[1734893066977,2.7277,183.45,183.4,1.6869]
[1734893067370,2.92,183.46,183.39,1.7415]
[1734893067770,2.7281,183.42,183.39,2.7285]
[1734893068872,2.92,183.46,183.35,1.7414]
[1734893069077,33.36262953,183.45,183.34,1.5813]
[1734893069272,33.36262953,183.45,183.31,2.92]
[1734893069472,35.06962953,183.45,183.31,2.92]
[1734893069878,2.7287,183.38,183.29,6.1607]
[1734893070073,2.92,183.4,183.29,3.2407]
[1734893070376,2.7289,183.37,183.33,2.7293]
[1734893070776,2.7289,183.37,183.29,6.1607]
[1734893071771,2.7289,183.37,183.33,2.7294]
[1734893072778,2.729,183.36,183.33,2.7294]
[1734893072977,2.92,183.4,183.29,6.1607]
[1734893072978,2.92,183.4,183.31,2.7297]
[1734893073377,2.7293,183.35,183.31,2.7297]
[1734893073975,33.36262953,183.39,183.31,2.7297]
[1734893074178,2.7293,183.34,183.3,2.7298]
[1734893075670,2.92,183.35,183.24,33.36262953]
[1734893075871,2.7299,183.31,183.27,2.7302]
[1734893076075,2.92,183.35,183.23,3.3559]
[1734893076271,2.729,183.37,183.32,2.7295]
[1734893076682,36.28262953,183.39,183.32,2.7295]
[1734893078282,36.28262953,183.39,183.27,2.92]
[1734893078476,36.28262953,183.39,183.3,2.7298]
[1734893078673,36.28262953,183.39,183.27,2.92]
[1734893079484,2.7293,183.35,183.27,2.92]
[1734893080084,2.729,183.36,183.27,2.92]
[1734893080687,2.729,183.36,183.31,2.7296]
[1734893081385,2.7292,183.35,183.31,2.7296]
[1734893081582,2.92,183.39,183.31,2.7296]
[1734893082586,2.7293,183.34,183.31,2.7296]
[1734893083085,2.7293,183.34,183.27,2.92]
[1734893083384,2.7293,183.34,183.3,2.7298]
[1734893083584,2.7296,183.33,183.27,2.92]
[1734893083786,2.7296,183.33,183.29,2.7299]
[1734893085284,2.7298,183.31,183.27,2.7302]
[1734893086587,2.7298,183.31,183.28,2.7301]
[1734893086887,2.7295,183.33,183.24,2.92]
[1734893087088,2.92,183.34,183.24,23.5076501]
[1734893087788,2.7293,183.35,183.31,2.7296]
[1734893089687,2.7293,183.34,183.31,2.7296]
[1734893090683,2.7295,183.33,183.3,2.7299]
[1734893091584,2.92,183.37,183.26,2.92]
[1734893092484,2.92,183.37,183.23,3.3559]
[1734893092680,2.92,183.37,183.23,6.2759]
[1734893092885,7.4729549,183.41,183.24,20.5876501]
[1734893093079,20.5876501,183.42,183.27,20.5876501]
[1734893093283,7.54868923,183.44,183.28,2.92]
[1734893093585,2.92,183.41,183.28,2.92]
[1734893093780,2.7286,183.39,183.35,2.729]
[1734893095187,2.92,183.41,183.33,2.7293]
[1734893095392,2.92,183.41,183.27,2.92]
[1734893096491,2.7292,183.35,183.31,2.7296]
[1734893097195,2.7292,183.35,183.27,2.92]
[1734893097196,2.7292,183.35,183.32,2.7296]
[1734893098689,2.92,183.36,183.21,20.5876501]
[1734893098894,2.7299,183.31,183.21,23.5076501]
[1734893099394,23.5076501,183.36,183.21,23.5076501]
[1734893099595,2.7299,183.3,183.26,2.7304]
[1734893099795,23.5076501,183.36,183.21,23.5076501]
[1734893100191,27.60358564,183.36,183.18,20.5876501]
[1734893100395,27.60358564,183.36,183.13,64.9173]
[1734893100396,20.5876501,183.33,183.17,2.92]
[1734893100898,2.7303,183.28,183.16,20.5876501]
[1734893101089,2.92,183.28,183.17,2.92]
[1734893101596,2.7303,183.27,183.17,2.92]
[1734893102291,2.92,183.28,183.2,20.5876501]
[1734893102495,20.5876501,183.36,183.2,20.5876501]
[1734893102694,2.9,183.36,183.23,20.5876501]
[1734893102999,2.7293,183.35,183.24,7.8833]
[1734893104299,2.7293,183.35,183.31,2.7296]
[1734893104498,23.4876501,183.36,183.24,7.8833]
[1734893104801,23.4876501,183.36,183.24,4.9833]
[1734893105097,27.58291576,183.36,183.24,4.9833]
[1734893105299,23.4876501,183.36,183.24,4.9833]
[1734893105500,2.7301,183.29,183.25,2.7305]
[1734893105695,20.5876501,183.3,183.17,109.85939576]
[1734893105890,2.9,183.29,183.17,109.85939576]
[1734893106095,20.5876501,183.27,183.17,109.85939576]
[1734893106489,20.5876501,183.27,183.14,5.0613]
[1734893106892,24.68351193,183.27,183.17,2.7317]
[1734893107300,20.5876501,183.27,183.17,2.7317]
[1734893107495,2.7314,183.21,183.17,2.7317]
[1734893107897,2.9,183.22,183.16,2.7319]
[1734893108200,5.6312,183.22,183.14,5.0613]
[1734893108901,2.9,183.22,183.14,5.0613]
[1734893109198,2.7314,183.21,183.17,2.7317]
[1734893110293,2.9,183.22,183.14,5.0613]
[1734893111002,33.50798994,183.26,183.14,5.0613]
[1734893111203,2.92,183.27,183.14,5.0613]
[1734893111503,33.50798994,183.29,183.25,2.7306]
[1734893111694,2.92,183.28,183.25,2.7306]
[1734893112303,2.92,183.28,183.18,2.92]
[1734893112707,2.7306,183.26,183.21,2.7311]
[1734893112908,2.92,183.28,183.18,2.92]
[1734893113805,2.7305,183.27,183.18,2.92]
[1734893114012,2.92,183.28,183.18,2.92]
[1734893114707,5.6502,183.28,183.23,2.7308]
[1734893116810,2.92,183.28,183.23,2.7308]
[1734893117006,2.7304,183.27,183.23,2.7308]
[1734893120713,2.92,183.28,183.18,2.92]
[1734893120919,2.7307,183.25,183.21,2.7311]
[1734893121920,2.7307,183.25,183.22,2.7311]
[1734893122520,2.7307,183.25,183.18,2.92]
[1734893122521,2.7307,183.25,183.21,2.7312]
[1734893123118,2.92,183.28,183.14,5.0613]
[1734893123416,33.50798994,183.26,183.14,5.0613]
[1734893124911,2.7311,183.23,183.19,2.7315]
[1734893125117,5.6511,183.23,183.19,2.7315]
[1734893125325,5.6511,183.23,183.14,5.0613]
[1734893125824,5.6511,183.23,183.19,2.7315]
[1734893127224,2.92,183.23,183.19,2.7315]
[1734893127419,2.7312,183.22,183.19,2.7315]
[1734893128820,1.5978,183.27,183.14,5.0613]
[1734893129025,2.92,183.27,183.14,5.0613]
[1734893129225,2.92,183.27,183.15,33.50798994]
[1734893129426,2.7306,183.26,183.22,2.731]
[1734893129628,2.7306,183.26,183.16,2.92]
[1734893131535,2.7307,183.25,183.21,2.7311]
[1734893132331,2.7307,183.25,183.22,2.7311]
[1734893132528,2.7308,183.24,183.16,2.92]
[1734893132928,2.7308,183.24,183.2,2.7313]
[1734893133928,2.7308,183.24,183.21,2.7312]
[1734893134532,2.92,183.27,183.14,5.0613]
[1734893134739,20.60769066,183.25,183.14,5.0613]
[1734893135434,20.60769066,183.25,183.17,2.7318]
[1734893135739,20.60769066,183.25,183.14,5.0613]
[1734893136335,2.7314,183.2,183.17,2.7318]